Portfolio,Expense Area,Cost Centre,Expense Type,Account Code,Amount,Supplier Name,SupplierId,Pay Date,Transaction No.
Resources & Corporate Governance ,Garage Internal,WVR01,Materials,0303,46.58,Arco Limited,100015,11/10/2012,10173796
Resources & Corporate Governance ,Toilet Cleaning,WBC01,Personal Protective Clothing,0340,10.47,Arco Limited,100015,11/10/2012,10173796
Resources & Corporate Governance ,Grounds Maintenance,WGM00,Personal Protective Clothing,0340,162.98,Arco Limited,100015,11/10/2012,10173796
Resources & Corporate Governance ,Highways,WHG00,Personal Protective Clothing,0340,15.74,Arco Limited,100015,11/10/2012,10173796
Resources & Corporate Governance ,Street Cleansing,WSC00,Personal Protective Clothing,0340,152.97,Arco Limited,100015,11/10/2012,10173796
Resources & Corporate Governance ,Garage Internal,WVR01,Personal Protective Clothing,0340,20.99,Arco Limited,100015,11/10/2012,10173796
Resources & Corporate Governance ,Domestic Waste Collection,WWC00,Personal Protective Clothing,0340,220.35,Arco Limited,100015,11/10/2012,10173796
Resources & Corporate Governance ,Trade Waste Collection,WWC01,Personal Protective Clothing,0340,20.99,Arco Limited,100015,11/10/2012,10173796
Resources & Corporate Governance ,Toilet Cleaning,WBC01,Materials,0303,49.04,Arco Limited,100015,18/10/2012,10174456
Resources & Corporate Governance ,Toilet Cleaning,WBC01,Personal Protective Clothing,0340,11.76,Arco Limited,100015,18/10/2012,10174456
Resources & Corporate Governance ,Grounds Maintenance,WGM00,Personal Protective Clothing,0340,284.99,Arco Limited,100015,18/10/2012,10174456
Resources & Corporate Governance ,Highways,WHG00,Personal Protective Clothing,0340,17.64,Arco Limited,100015,18/10/2012,10174456
Resources & Corporate Governance,Handy man,WHM00,Personal Protective Clothing,0340,125.70,Arco Limited,100015,18/10/2012,10174456
Resources & Corporate Governance ,Street Cleansing,WSC00,Personal Protective Clothing,0340,177.77,Arco Limited,100015,18/10/2012,10174456
Resources & Corporate Governance ,Garage Internal,WVR01,Personal Protective Clothing,0340,23.52,Arco Limited,100015,18/10/2012,10174456
Resources & Corporate Governance ,Domestic Waste Collection,WWC00,Personal Protective Clothing,0340,246.97,Arco Limited,100015,18/10/2012,10174456
Resources & Corporate Governance ,Trade Waste Collection,WWC01,Personal Protective Clothing,0340,23.50,Arco Limited,100015,18/10/2012,10174456
Resources & Corporate Governance ,General Financial Services,GFS00,External Contractor & Operator,0742,7139.75,Audit Commission,100020,18/10/2012,10174672
Sustainable Inclusive Communities,Housing Options Team,HOT00,Rents,0140,1400.00,Alma Lodge Hotel,100026,18/10/2012,10174409
Housing Revenue Account ,Unplanned Maintenance and Repair,UMR00,R&M External Contractors,0100,1075.78,AWM Electrical Contractors Ltd,100051,11/10/2012,10174626
Housing Revenue Account ,Unplanned Maintenance and Repair,UMR00,R&M External Contractors,0100,1062.49,AWM Electrical Contractors Ltd,100051,11/10/2012,10174628
Housing Revenue Account ,Unplanned Maintenance and Repair,UMR00,R&M External Contractors,0100,1861.23,AWM Electrical Contractors Ltd,100051,11/10/2012,10174629
Housing Revenue Account ,Unplanned Maintenance and Repair,UMR00,R&M External Contractors,0100,5949.63,AWM Electrical Contractors Ltd,100051,18/10/2012,10174755
Capital Program ,Rewiring,HCE20,Capital Contract Payments,5000,1613.00,AWM Electrical Contractors Ltd,100051,18/10/2012,10174755
Housing Revenue Account ,Unplanned Maintenance and Repair,UMR00,R&M External Contractors,0100,513.69,AWM Electrical Contractors Ltd,100051,18/10/2012,10174918
Housing Revenue Account ,Unplanned Maintenance and Repair,UMR00,R&M External Contractors,0100,1299.20,AWM Electrical Contractors Ltd,100051,25/10/2012,10175281
Housing Revenue Account ,Unplanned Maintenance and Repair,UMR00,R&M External Contractors,0100,669.28,Andy Woods Landscapes,100078,04/10/2012,10174075
Capital Program ,Disabled Adaptations,HCR01,Capital Contract Payments,5000,375.28,Andy Woods Landscapes,100078,04/10/2012,10174075
Housing Revenue Account ,Unplanned Maintenance and Repair,UMR00,R&M External Contractors,0100,810.67,Andy Woods Landscapes,100078,11/10/2012,10174538
Housing Revenue Account ,Unplanned Maintenance and Repair,UMR00,R&M External Contractors,0100,504.86,Andy Woods Landscapes,100078,18/10/2012,10174713
Housing Revenue Account ,Unplanned Maintenance and Repair,UMR00,R&M External Contractors,0100,450.97,Andy Woods Landscapes,100078,25/10/2012,10175072
Capital Program ,Kitchen Modifications,HIK10,Capital Contract Payments,5000,11489.30,A C E Carpentry & Joinery Contractors Ltd,100085,11/10/2012,10173977
Capital Program ,Kitchen Modifications,HIK10,Capital Contract Payments,5000,11489.30,A C E Carpentry & Joinery Contractors Ltd,100085,18/10/2012,10174749
Capital Program ,Kitchen Modifications,HIK10,Capital Contract Payments,5000,6893.58,A C E Carpentry & Joinery Contractors Ltd,100085,25/10/2012,10175092
Sustainable Environment ,Caldecott Park/Town Centre Area,PKS00,Maintenance of Equipment,0301,472.00,A H S Ltd,100128,25/10/2012,10173928
Resources & Corporate Governance ,Council Tax and NNDR Collection,CTX01,External Contractor & Operator,0742,110.17,Bristow & Sutor,100159,18/10/2012,10174772
Resources & Corporate Governance ,Town Hall,OFF00,R&M External Contractors,0100,48.80,British Telecommunications Plc,100161,18/10/2012,10174393
Housing Revenue Account ,Control Centre (HRA),CCE00,New Equipment,0300,52.96,British Telecommunications Plc,100161,18/10/2012,10174393
Economy Development & Culture,Art Gallery and Museum,AGM00,Telephone Expenses,0371,139.07,British Telecommunications Plc,100161,18/10/2012,10174393
Resources & Corporate Governance ,Customer and Information Strategy,CIS10,Telephone Expenses,0371,798.51,British Telecommunications Plc,100161,18/10/2012,10174393
Resources & Corporate Governance ,Civic Responsibilities,CIV00,Telephone Expenses,0371,29.40,British Telecommunications Plc,100161,18/10/2012,10174393
Economy Development & Culture,Car Parks General,CPK01,Telephone Expenses,0371,15.62,British Telecommunications Plc,100161,18/10/2012,10174393
Resources & Corporate Governance ,Council Tax and NNDR Collection,CTX01,Telephone Expenses,0371,28.83,British Telecommunications Plc,100161,18/10/2012,10174393
Economy Development & Culture,Decrim. of Car Parking on street parking,DPE02,Telephone Expenses,0371,62.49,British Telecommunications Plc,100161,18/10/2012,10174393
Sustainable Inclusive Communities,Housing Benefit Administration,HBA00,Telephone Expenses,0371,24.40,British Telecommunications Plc,100161,18/10/2012,10174393
Sustainable Environment ,Caldecott Park/Town Centre Area,PKS00,Telephone Expenses,0371,31.37,British Telecommunications Plc,100161,18/10/2012,10174393
Resources & Corporate Governance ,Central Telephone Service,TEL00,Telephone Expenses,0371,24.40,British Telecommunications Plc,100161,18/10/2012,10174393
Economy Development & Culture,Visitor Centre,VSC00,Telephone Expenses,0371,97.90,British Telecommunications Plc,100161,18/10/2012,10174393
Economy Development & Culture,Decrim. of Car Parking on street parking,DPE02,Subscriptions,0421,585.00,British Parking Association,100176,11/10/2012,10174402
Housing Revenue Account ,Unplanned Maintenance and Repair,UMR00,R&M External Contractors,0100,1177.57,Bowen Builders,100241,04/10/2012,10174066
Capital Program ,Disabled Adaptations,HCR01,Capital Contract Payments,5000,35.22,Bowen Builders,100241,04/10/2012,10174066
Housing Revenue Account ,Unplanned Maintenance and Repair,UMR00,R&M External Contractors,0100,2903.79,Bowen Builders,100241,04/10/2012,10174067
Housing Revenue Account ,Unplanned Maintenance and Repair,UMR00,R&M External Contractors,0100,642.74,Bowen Builders,100241,11/10/2012,10174420
Housing Revenue Account ,Unplanned Maintenance and Repair,UMR00,R&M External Contractors,0100,1362.70,Bowen Builders,100241,11/10/2012,10174421
Housing Revenue Account ,Unplanned Maintenance and Repair,UMR00,R&M External Contractors,0100,1376.00,Bowen Builders,100241,11/10/2012,10174536
Housing Revenue Account ,Sheltered Housing Team,MAN21,Estates,0457,150.00,Bowen Builders,100241,11/10/2012,10174536
Housing Revenue Account ,Unplanned Maintenance and Repair,UMR00,R&M External Contractors,0100,476.71,Bowen Builders,100241,18/10/2012,10174714
Housing Revenue Account ,Unplanned Maintenance and Repair,UMR00,R&M External Contractors,0100,1718.54,Bowen Builders,100241,18/10/2012,10174753
Resources & Corporate Governance,Corporate Property R&M,CPA01,R&M External Contractors,0100,469.35,Bowen Builders,100241,25/10/2012,10174917
Housing Revenue Account ,Unplanned Maintenance and Repair,UMR00,R&M External Contractors,0100,265.72,Bowen Builders,100241,25/10/2012,10175070
Capital Program ,Pettiver Crescent,PCH00,Capital Contract Payments,5000,205.66,Bowen Builders,100241,25/10/2012,10175070
Housing Revenue Account ,Control Centre CCTV,CCE01,Maintenance of Equipment,0301,15673.50,Barron McCann Ltd,100248,11/10/2012,10174185
Housing Revenue Account ,Estate Management,MAN22,New Equipment,0300,1040.00,Stone Computers,100390,18/10/2012,10174872
Sustainable Environment ,Clinical Waste,REF04,External Contractor & Operator,0742,513.03,OCS Group UK Ltd t/a Cannon,100436,04/10/2012,10173177
Sustainable Environment ,Clinical Waste,REF04,External Contractor & Operator,0742,513.03,OCS Group UK Ltd t/a Cannon,100436,11/10/2012,10174553
Economy Development & Culture,AGM Conservation/Documentation,AGM01,Other Miscellaneous Expenses,0444,670.82,Conservation Resources (Uk) Ltd,100445,11/10/2012,10173999
Economy Development & Culture,AGM Exhibitions/Outreach,AGM02,Other Miscellaneous Expenses,0444,980.00,C'Art - Art Transport Ltd,100487,11/10/2012,10174161
Resources & Corporate Governance,Central Business Support Services,CSS15,Photocopying,0354,585.57,Canon (UK) Limited,100514,11/10/2012,10174403
Capital Program ,Purchase of Vehicles,VHC00,Miscellaneous Capital Expenditure,5020,107500.00,Dennis Eagle Ltd,100559,18/10/2012,10174882
Resources & Corporate Governance ,Domestic Waste Collection,WWC00,Vehicle Repair and Maintenance,0200,586.95,Dennis Eagle Ltd,100559,25/10/2012,10174898
Resources & Corporate Governance,Corporate Property R&M,CPA01,R&M External Contractors,0100,447.00,Dunchurch Services (Rugby) Ltd,100565,18/10/2012,10174635
Capital Program ,Bathroom Modifications,HIS01,Capital Contract Payments,5000,17465.00,JADA Building & Maintenance Services Ltd,100583,04/10/2012,10173662
Capital Program ,Bathroom Modifications,HIS01,Capital Contract Payments,5000,17465.00,JADA Building & Maintenance Services Ltd,100583,04/10/2012,10174039
Housing Revenue Account ,Unplanned Maintenance and Repair,UMR00,R&M External Contractors,0100,7839.59,JADA Building & Maintenance Services Ltd,100583,04/10/2012,10174069
Capital Program ,Fire Risk Assessment,HCE18,Capital Contract Payments,5000,146.71,JADA Building & Maintenance Services Ltd,100583,04/10/2012,10174069
Capital Program ,Bathroom Modifications,HIS01,Capital Contract Payments,5000,5212.00,JADA Building & Maintenance Services Ltd,100583,04/10/2012,10174069
Housing Revenue Account ,Unplanned Maintenance and Repair,UMR00,R&M External Contractors,0100,5569.33,JADA Building & Maintenance Services Ltd,100583,11/10/2012,10174423
Housing Revenue Account ,Estate Management,MAN22,Estates,0457,30.23,JADA Building & Maintenance Services Ltd,100583,11/10/2012,10174423
Capital Program ,Disabled Adaptations,HCR01,Capital Contract Payments,5000,3314.18,JADA Building & Maintenance Services Ltd,100583,11/10/2012,10174423
Capital Program ,Bathroom Modifications,HIS01,Capital Contract Payments,5000,945.00,JADA Building & Maintenance Services Ltd,100583,11/10/2012,10174423
Capital Program ,Bathroom Modifications,HIS01,Capital Contract Payments,5000,17465.00,JADA Building & Maintenance Services Ltd,100583,18/10/2012,10174506
Capital Program ,Bathroom Modifications,HIS01,Capital Contract Payments,5000,19960.00,JADA Building & Maintenance Services Ltd,100583,18/10/2012,10174701
Housing Revenue Account ,Repainting Schemes,UMR02,R&M External Contractors,0100,5694.38,Lee Davies Decorating,100600,04/10/2012,10174079
Housing Revenue Account ,Unplanned Maintenance and Repair,UMR00,R&M External Contractors,0100,1566.42,Lee Davies Decorating,100600,25/10/2012,10175118
Housing Revenue Account ,Repainting Schemes,UMR02,R&M External Contractors,0100,1932.14,Lee Davies Decorating,100600,25/10/2012,10175118
Resources & Corporate Governance,Corporate Property Central Utilities,CPA02,Gas,0131,-2529.12,ESPO,100641,25/10/2012,10174412
Resources & Corporate Governance,Corporate Property Central Utilities,CPA02,Gas,0131,1448.43,ESPO,100641,25/10/2012,10174848
Housing Revenue Account ,Albert Square AP,AGP20,Gas,0131,1033.99,ESPO,100641,25/10/2012,10174850
Housing Revenue Account ,Lesley Souter House AP,AGP16,Gas,0131,775.34,ESPO,100641,25/10/2012,10174851
Housing Revenue Account ,Tanser Court AP,AGP17,Gas,0131,899.54,ESPO,100641,25/10/2012,10174852
,Balance Sheet,BS,Car Leasing Scheme,9244,-1539.74,Lex Autolease Ltd,100844,18/10/2012,10174196
,Balance Sheet,BS,Car Leasing Scheme,9244,2394.07,Lex Autolease Ltd,100844,18/10/2012,10174704
,Balance Sheet,BS,Car Leasing Scheme,9244,3743.68,Lex Autolease Ltd,100844,18/10/2012,10174705
,Balance Sheet,BS,Car Leasing Scheme,9244,2318.06,Lex Autolease Ltd,100844,18/10/2012,10174706
,Balance Sheet,BS,Car Leasing Scheme,9244,4134.07,Lex Autolease Ltd,100844,18/10/2012,10174707
,Balance Sheet,BS,Car Leasing Scheme,9244,5988.47,Lex Autolease Ltd,100844,25/10/2012,10175131
Sustainable Environment ,Grass Cutting,PKS13,External Contractor & Operator,0742,1263.00,Grandborough Parish Council,100889,25/10/2012,10175126
Resources & Corporate Governance ,Town Hall,OFF00,Materials,0303,750.80,Greenham,100890,04/10/2012,10173514
Resources & Corporate Governance ,Town Hall,OFF00,Materials,0303,750.80,Greenham,100890,25/10/2012,10174784
Resources & Corporate Governance ,Human Resources Centralised Services,RES31,Recruitment Expenses,0012,421.80,TMP (UK) LTD,100972,11/10/2012,10174145
Resources & Corporate Governance ,Human Resources Centralised Services,RES31,Recruitment Expenses,0012,421.48,TMP (UK) LTD,100972,11/10/2012,10174438
Resources & Corporate Governance ,Human Resources Centralised Services,RES31,Recruitment Expenses,0012,549.00,TMP (UK) LTD,100972,18/10/2012,10174799
Resources & Corporate Governance,Corporate Property R&M,CPA01,R&M External Contractors,0100,593.10,ThyssenKrupp Elevator UK,100985,25/10/2012,10174873
Capital Program ,Parish and Rural Capital Spending,CGR03,Capital Grants,5014,2835.00,Harborough Magna Parish Council,100988,18/10/2012,10174677
Capital Program ,Bathroom Modifications,HIS01,Capital Contract Payments,5000,5970.00,B Hartwell Plumbers Ltd,100989,04/10/2012,10173906
Capital Program ,Bathroom Modifications,HIS01,Capital Contract Payments,5000,11355.00,B Hartwell Plumbers Ltd,100989,18/10/2012,10174750
Resources & Corporate Governance ,Trade Waste Collection,WWC01,Vehicle Repair and Maintenance,0200,850.00,H.L. Smith (Transmissions) Ltd,101096,25/10/2012,10174779
Resources & Corporate Governance ,Grounds Maintenance,WGM00,External Contractor & Operator,0742,7344.00,K A Hicks,101216,04/10/2012,10174121
Resources & Corporate Governance ,Grounds Maintenance,WGM00,External Contractor & Operator,0742,7344.00,K A Hicks,101216,04/10/2012,10174122
Resources & Corporate Governance ,Highways,WHG00,Contract Hire,0220,450.00,M & J Engineers Ltd,101278,04/10/2012,10173039
Capital Program ,Kitchen Modifications,HIK10,Capital Contract Payments,5000,579.64,M & J Engineers Ltd,101278,04/10/2012,10173956
Capital Program ,Great Central Walk Bridge,LEI14,Capital Contract Payments,5000,874.00,M & J Engineers Ltd,101278,18/10/2012,10174470
Housing Revenue Account ,Unplanned Maintenance and Repair,UMR00,R&M External Contractors,0100,798.59,MBG Decorators (Rugby Ltd),101288,04/10/2012,10174073
Housing Revenue Account ,Repainting Schemes,UMR02,R&M External Contractors,0100,1819.72,MBG Decorators (Rugby Ltd),101288,04/10/2012,10174073
Housing Revenue Account ,Unplanned Maintenance and Repair,UMR00,R&M External Contractors,0100,1790.24,MBG Decorators (Rugby Ltd),101288,11/10/2012,10174426
Resources & Corporate Governance,Handy man,WHM00,Materials,0303,628.02,Melbros Ltd,101291,04/10/2012,10173755
Resources & Corporate Governance,Handy man,WHM00,Materials,0303,623.15,Melbros Ltd,101291,25/10/2012,10175011
Resources & Corporate Governance ,Grounds Maintenance,WGM00,Vehicle Repair and Maintenance,0200,323.48,Noden Truck Centre Ltd,101368,18/10/2012,10174557
Resources & Corporate Governance ,Street Cleansing,WSC00,Vehicle Repair and Maintenance,0200,45.61,Noden Truck Centre Ltd,101368,18/10/2012,10174557
Resources & Corporate Governance ,Domestic Waste Collection,WWC00,Vehicle Repair and Maintenance,0200,242.74,Noden Truck Centre Ltd,101368,18/10/2012,10174557
Resources & Corporate Governance ,Domestic Waste Collection,WWC00,Vehicle Repair and Maintenance,0200,656.10,Noden Truck Centre Ltd,101368,25/10/2012,10174728
Economy Development & Culture,Visitor Centre,VSC00,Events Tickets - Zero Rated,1405,1202.94,National Express Ltd,101392,04/10/2012,10174132
Capital Program ,Disabled Facilities Grant,REN01,Capital Grants,5014,1130.58,Heart of England Housing Association,101400,18/10/2012,10174317
Resources & Corporate Governance,Central Business Support Services,CSS15,External Printing,0352,428.56,Polycopy,101428,25/10/2012,10175027
Resources & Corporate Governance ,Grounds Maintenance,WGM00,Vehicle Running Costs,0201,430.00,Post Office Ltd,101429,11/10/2012,10174434
Resources & Corporate Governance ,Street Cleansing,WSC00,Vehicle Running Costs,0201,330.00,Post Office Ltd,101429,11/10/2012,10174434
Housing Revenue Account ,Unplanned Maintenance and Repair,UMR00,R&M External Contractors,0100,585.00,Reeds Plumbing & Heating Contractors Ltd,101504,04/10/2012,10174080
Capital Program ,Heating Upgrades,HIM01,Capital Contract Payments,5000,1405.00,Reeds Plumbing & Heating Contractors Ltd,101504,04/10/2012,10174080
Capital Program ,Electric to Gas Conversions,HIM04,Capital Contract Payments,5000,4590.00,Reeds Plumbing & Heating Contractors Ltd,101504,04/10/2012,10174080
Capital Program ,Heating Upgrades,HIM01,Capital Contract Payments,5000,23030.00,Reeds Plumbing & Heating Contractors Ltd,101504,11/10/2012,10174211
Housing Revenue Account ,Unplanned Maintenance and Repair,UMR00,R&M External Contractors,0100,2280.00,Reeds Plumbing & Heating Contractors Ltd,101504,11/10/2012,10174632
Capital Program ,Disabled Adaptations,HCR01,Capital Contract Payments,5000,3918.58,Reeds Plumbing & Heating Contractors Ltd,101504,11/10/2012,10174633
Housing Revenue Account ,Unplanned Maintenance and Repair,UMR00,R&M External Contractors,0100,165.00,Reeds Plumbing & Heating Contractors Ltd,101504,18/10/2012,10174710
Capital Program ,Disabled Adaptations,HCR01,Capital Contract Payments,5000,948.84,Reeds Plumbing & Heating Contractors Ltd,101504,18/10/2012,10174710
Capital Program ,Heating Upgrades,HIM01,Capital Contract Payments,5000,4000.00,Reeds Plumbing & Heating Contractors Ltd,101504,18/10/2012,10174919
Sustainable Environment ,Caldecott Park/Town Centre Area,PKS00,External Contractor & Operator,0742,1536.00,Royal Society For The Prevention Of Accidents,101514,04/10/2012,10174124
Resources & Corporate Governance ,Electoral Registration,ERG00,Postage & Distribution,0370,1176.72,Royal Mail,101554,18/10/2012,10172260
Resources & Corporate Governance ,Electoral Registration,ERG00,Postage & Distribution,0370,1126.37,Royal Mail,101554,18/10/2012,10173268
Economy Development & Culture,Art Gallery and Museum,AGM00,Postage & Distribution,0370,6.83,Royal Mail,101554,04/10/2012,10173910
Economy Development & Culture,Building Control Services,BCS00,Postage & Distribution,0370,0.93,Royal Mail,101554,04/10/2012,10173910
Economy Development & Culture,Building Regulation Fee Earning Account,BCS99,Postage & Distribution,0370,1.24,Royal Mail,101554,04/10/2012,10173910
Economy Development & Culture,Car Parks General,CPK01,Postage & Distribution,0370,32.07,Royal Mail,101554,04/10/2012,10173910
Resources & Corporate Governance,Central Business Support Services,CSS15,Postage & Distribution,0370,449.13,Royal Mail,101554,04/10/2012,10173910
Resources & Corporate Governance ,Council Tax and NNDR Collection,CTX01,Postage & Distribution,0370,504.34,Royal Mail,101554,04/10/2012,10173910
Economy Development & Culture,Decrim. of Car Parking on street parking,DPE02,Postage & Distribution,0370,128.26,Royal Mail,101554,04/10/2012,10173910
Resources & Corporate Governance ,Electoral Registration,ERG00,Postage & Distribution,0370,5.86,Royal Mail,101554,04/10/2012,10173910
Sustainable Inclusive Communities,Housing Benefit Administration,HBA00,Postage & Distribution,0370,192.54,Royal Mail,101554,04/10/2012,10173910
Housing Revenue Account ,Supervision and Management General,MAN00,Postage & Distribution,0370,1544.04,Royal Mail,101554,04/10/2012,10173910
Economy Development & Culture,Planning General/Income,PLN00,Postage & Distribution,0370,295.07,Royal Mail,101554,04/10/2012,10173910
Economy Development & Culture,Visitor Centre,VSC00,Postage & Distribution,0370,3.11,Royal Mail,101554,04/10/2012,10173910
Resources & Corporate Governance ,General Administration,WAD00,Postage & Distribution,0370,20.69,Royal Mail,101554,04/10/2012,10173910
Economy Development & Culture,Art Gallery and Museum,AGM00,Postage & Distribution,0370,14.90,Royal Mail,101554,18/10/2012,10174593
Economy Development & Culture,Building Control Services,BCS00,Postage & Distribution,0370,7.63,Royal Mail,101554,18/10/2012,10174593
Economy Development & Culture,Building Regulation Fee Earning Account,BCS99,Postage & Distribution,0370,10.11,Royal Mail,101554,18/10/2012,10174593
Economy Development & Culture,Car Parks General,CPK01,Postage & Distribution,0370,28.31,Royal Mail,101554,18/10/2012,10174593
Resources & Corporate Governance,Central Business Support Services,CSS15,Postage & Distribution,0370,552.32,Royal Mail,101554,18/10/2012,10174593
Resources & Corporate Governance ,Council Tax and NNDR Collection,CTX01,Postage & Distribution,0370,17.28,Royal Mail,101554,18/10/2012,10174593
Economy Development & Culture,Decrim. of Car Parking on street parking,DPE02,Postage & Distribution,0370,113.23,Royal Mail,101554,18/10/2012,10174593
Resources & Corporate Governance ,Electoral Registration,ERG00,Postage & Distribution,0370,13.24,Royal Mail,101554,18/10/2012,10174593
Sustainable Inclusive Communities,Housing Benefit Administration,HBA00,Postage & Distribution,0370,159.37,Royal Mail,101554,18/10/2012,10174593
Housing Revenue Account ,Supervision and Management General,MAN00,Postage & Distribution,0370,151.91,Royal Mail,101554,18/10/2012,10174593
Economy Development & Culture,Planning General/Income,PLN00,Postage & Distribution,0370,402.28,Royal Mail,101554,18/10/2012,10174593
Economy Development & Culture,Visitor Centre,VSC00,Postage & Distribution,0370,21.08,Royal Mail,101554,18/10/2012,10174593
Resources & Corporate Governance ,General Administration,WAD00,Postage & Distribution,0370,29.80,Royal Mail,101554,18/10/2012,10174593
Sustainable Environment ,Caldecott Park/Town Centre Area,PKS00,Maintenance of Equipment,0301,801.90,Record RSS Ltd,101562,18/10/2012,10174388
Housing Revenue Account ,Unplanned Maintenance and Repair,UMR00,R&M External Contractors,0100,2770.47,Rugby Plastering Services,101602,04/10/2012,10174070
Capital Program ,Fire Risk Assessment,HCE18,Capital Contract Payments,5000,29.88,Rugby Plastering Services,101602,04/10/2012,10174070
Resources & Corporate Governance,Handy man,WHM00,External Contractor & Operator,0742,2631.98,Rugby Plastering Services,101602,18/10/2012,10174580
Housing Revenue Account ,Unplanned Maintenance and Repair,UMR00,R&M External Contractors,0100,2197.81,Rugby Plastering Services,101602,11/10/2012,10174627
Resources & Corporate Governance,Corporate Property Central Utilities,CPA02,Water Services,0143,2731.31,Severn Trent Water Ltd,101610,18/10/2012,10174404
Resources & Corporate Governance ,Legal Services,DEM20,Ref. Books Journals & Magazines,0353,654.00,Sweet & Maxwell Limited,101632,04/10/2012,10173953
Resources & Corporate Governance ,Legal Services,DEM20,Ref. Books Journals & Magazines,0353,2934.00,Sweet & Maxwell Limited,101632,11/10/2012,10174226
Housing Revenue Account ,Unplanned Maintenance and Repair,UMR00,R&M External Contractors,0100,584.00,Steve Diston Contract Flooring,101668,18/10/2012,10173115
Resources & Corporate Governance ,Street Cleansing,WSC00,Vehicle Running Costs,0201,42.00,HI-Q Motorway,101736,25/10/2012,10174091
Resources & Corporate Governance ,Domestic Waste Collection,WWC00,Vehicle Running Costs,0201,1688.48,HI-Q Motorway,101736,25/10/2012,10174091
Resources & Corporate Governance ,Domestic Waste Collection,WWC00,Vehicle Running Costs,0201,611.00,HI-Q Motorway,101736,11/10/2012,10174245
Resources & Corporate Governance ,Trade Waste Collection,WWC01,Vehicle Running Costs,0201,241.45,HI-Q Motorway,101736,11/10/2012,10174245
Resources & Corporate Governance ,Domestic Waste Collection,WWC00,Vehicle Running Costs,0201,370.00,HI-Q Motorway,101736,11/10/2012,10174246
Resources & Corporate Governance ,Trade Waste Collection,WWC01,Vehicle Running Costs,0201,175.00,HI-Q Motorway,101736,11/10/2012,10174246
Resources & Corporate Governance ,Domestic Waste Collection,WWC00,Contract Hire,0220,175.00,HI-Q Motorway,101736,11/10/2012,10174246
Resources & Corporate Governance ,Domestic Waste Collection,WWC00,Vehicle Running Costs,0201,692.91,HI-Q Motorway,101736,25/10/2012,10175045
Resources & Corporate Governance ,Domestic Waste Collection,WWC00,Vehicle Running Costs,0201,1313.91,HI-Q Motorway,101736,25/10/2012,10175047
Resources & Corporate Governance ,Domestic Waste Collection,WWC00,Vehicle Running Costs,0201,729.00,HI-Q Motorway,101736,25/10/2012,10175048
Resources & Corporate Governance ,TREE WORKS,WGM01,Tools,0304,571.22,Tudor Environmental,101743,11/10/2012,10174273
Resources & Corporate Governance ,Highways,WHG00,Vehicle Repair and Maintenance,0200,600.00,Transloader Services,101766,11/10/2012,10174168
Housing Revenue Account ,Sheltered Housing,AGP00,Telephone Expenses,0371,355.80,Vodafone Corporate Ltd,101831,25/10/2012,10171034
Economy Development & Culture,Building Control Services,BCS00,Telephone Expenses,0371,2.80,Vodafone Corporate Ltd,101831,25/10/2012,10171034
Economy Development & Culture,Building Regulation Fee Earning Account,BCS99,Telephone Expenses,0371,3.72,Vodafone Corporate Ltd,101831,25/10/2012,10171034
Housing Revenue Account ,Control Centre (HRA),CCE00,Telephone Expenses,0371,14.79,Vodafone Corporate Ltd,101831,25/10/2012,10171034
Resources & Corporate Governance ,Council Tax and NNDR Collection,CTX01,Telephone Expenses,0371,7.22,Vodafone Corporate Ltd,101831,25/10/2012,10171034
Sustainable Inclusive Communities,Housing Options Team,HOT00,Telephone Expenses,0371,51.89,Vodafone Corporate Ltd,101831,25/10/2012,10171034
Housing Revenue Account ,Supervision and Management General,MAN00,Telephone Expenses,0371,317.99,Vodafone Corporate Ltd,101831,25/10/2012,10171034
Housing Revenue Account ,Estate Management,MAN22,Telephone Expenses,0371,54.00,Vodafone Corporate Ltd,101831,25/10/2012,10171034
Housing Revenue Account ,Multi-Storey Flats,MSF00,Telephone Expenses,0371,7.82,Vodafone Corporate Ltd,101831,25/10/2012,10171034
Economy Development & Culture,Street Furniture,HIG01,External Contractor & Operator,0742,646.66,Warwickshire County Council,101840,18/10/2012,10174870
Resources & Corporate Governance,Handy man,WHM00,Materials,0303,518.63,Wolseley UK Limited,101851,11/10/2012,10174038
Resources & Corporate Governance ,Human Resources Centralised Services,RES31,Training fees,0011,2100.00,West Midlands Councils,101880,25/10/2012,10174962
Resources & Corporate Governance ,General Administration,WAD00,Training fees,0011,750.00,Warwickshire College,101882,18/10/2012,10174463
Resources & Corporate Governance ,General Administration,WAD00,Training fees,0011,750.00,Warwickshire College,101882,25/10/2012,10175097
Housing Revenue Account ,Unplanned Maintenance and Repair,UMR00,R&M External Contractors,0100,4110.40,Warwickshire County Council,101893,04/10/2012,10174139
Resources & Corporate Governance ,Trade Waste Collection,WWC01,Removal of Waste - WCC,0711,10417.81,Warwickshire County Council,101893,25/10/2012,10174620
Housing Revenue Account ,Unplanned Maintenance and Repair,UMR00,R&M External Contractors,0100,3671.89,Warwickshire County Council,101893,25/10/2012,10174906
CSW Superfast Broadband,CSW Superfast Broadband,RBB00,Capital Contract Payments,5000,3676.90,Warwickshire County Council,101893,25/10/2012,10175130
Capital Program ,Electric to Gas Conversions,HIM04,Capital Contract Payments,5000,9176.76,Adroit Services Ltd,101939,04/10/2012,10174158
Housing Revenue Account ,Unplanned Maintenance and Repair,UMR00,R&M External Contractors,0100,1059.62,Adroit Services Ltd,101939,11/10/2012,10174417
Housing Revenue Account ,Unplanned Maintenance and Repair,UMR00,R&M External Contractors,0100,1504.98,Adroit Services Ltd,101939,11/10/2012,10174418
Housing Revenue Account ,Unplanned Maintenance and Repair,UMR00,R&M External Contractors,0100,135.00,Adroit Services Ltd,101939,11/10/2012,10174419
Capital Program ,Heating Upgrades,HIM01,Capital Contract Payments,5000,1375.20,Adroit Services Ltd,101939,11/10/2012,10174419
Capital Program ,Electric to Gas Conversions,HIM04,Capital Contract Payments,5000,10049.52,Adroit Services Ltd,101939,18/10/2012,10174507
Housing Revenue Account ,Unplanned Maintenance and Repair,UMR00,R&M External Contractors,0100,59.97,Adroit Services Ltd,101939,11/10/2012,10174535
Capital Program ,Heating Upgrades,HIM01,Capital Contract Payments,5000,2142.41,Adroit Services Ltd,101939,11/10/2012,10174535
Capital Program ,Electric to Gas Conversions,HIM04,Capital Contract Payments,5000,13765.14,Adroit Services Ltd,101939,25/10/2012,10174936
Housing Revenue Account ,Unplanned Maintenance and Repair,UMR00,R&M External Contractors,0100,1334.80,Adroit Services Ltd,101939,25/10/2012,10175071
Capital Program ,Electric to Gas Conversions,HIM04,Capital Contract Payments,5000,4588.38,Adroit Services Ltd,101939,25/10/2012,10175144
Housing Revenue Account ,Unplanned Maintenance and Repair,UMR00,R&M External Contractors,0100,1711.67,Adroit Services Ltd,101939,25/10/2012,10175285
Resources & Corporate Governance ,WSU Depot,WDP00,Messing Facilities,0332,527.90,BURDENS LTD,102070,25/10/2012,10173494
Resources & Corporate Governance ,Human Resources Centralised Services,RES31,Training fees,0011,760.00,Nuneaton & Bedworth Borough Council,108060,11/10/2012,10174152
Resources & Corporate Governance ,General Financial Services,GFS00,External Contractor & Operator,0742,1875.00,Sterling International Brokers Ltd,108141,11/10/2012,10174534
Resources & Corporate Governance ,Central Telephone Service,TEL00,Telephone Expenses,0371,884.67,British Telecommunications PLC,108425,25/10/2012,10175125
Resources & Corporate Governance ,"Communications, Consultation and Information Team",BTR20,Data Protection Registration Fee,0380,500.00,Information Commission,109302,18/10/2012,10174764
Resources & Corporate Governance ,Garage Internal,WVR01,Materials,0303,22973.11,Watson Petroleum,110361,25/10/2012,10174656
Capital Program ,Pettiver Crescent,PCH00,Capital Contract Payments,5000,1500.00,Ken Dibble Accoustics,111448,11/10/2012,10174439
Resources & Corporate Governance,Central Business Support Services,CSS15,Photocopying,0354,2819.10,Ricoh UK Limited,111532,18/10/2012,10172474
Economy Development & Culture,Art Gallery and Museum,AGM00,Photocopying,0354,430.69,Ricoh UK Limited,111532,04/10/2012,10173957
Resources & Corporate Governance ,Grounds Maintenance,WGM00,External Contractor & Operator,0742,4544.89,Mark Smithers,112612,11/10/2012,10174395
Resources & Corporate Governance ,Grounds Maintenance,WGM00,External Contractor & Operator,0742,858.00,Mark Smithers,112612,11/10/2012,10174396
Resources & Corporate Governance ,Maintenance of Customer Services Systems,CIS21,Software Maintenance,0374,1580.65,Civica UK Ltd,112724,04/10/2012,10173519
Resources & Corporate Governance ,Maintenance of Customer Services Systems,CIS21,Software Purchase,0373,2000.00,Civica UK Ltd,112724,11/10/2012,10174162
Resources & Corporate Governance ,Maintenance of Customer Services Systems,CIS21,Software Maintenance,0374,1050.00,Civica UK Ltd,112724,18/10/2012,10174884
Resources & Corporate Governance ,Maintenance of Customer Services Systems,CIS21,Software Maintenance,0374,2160.00,Civica UK Ltd,112724,18/10/2012,10174886
Resources & Corporate Governance ,Domestic Waste Collection,WWC00,Agency Staff,0003,1197.54,Extra Personnel Limited,112996,04/10/2012,10173120
Resources & Corporate Governance ,Domestic Waste Collection,WWC00,Agency Staff,0003,598.77,Extra Personnel Limited,112996,04/10/2012,10173515
Resources & Corporate Governance ,Domestic Waste Collection,WWC00,Agency Staff,0003,1107.14,Extra Personnel Limited,112996,04/10/2012,10173719
Resources & Corporate Governance ,Domestic Waste Collection,WWC00,Agency Staff,0003,1016.74,Extra Personnel Limited,112996,04/10/2012,10174055
Resources & Corporate Governance ,Domestic Waste Collection,WWC00,Agency Staff,0003,1016.74,Extra Personnel Limited,112996,18/10/2012,10174584
Resources & Corporate Governance ,Domestic Waste Collection,WWC00,Agency Staff,0003,707.86,Extra Personnel Limited,112996,25/10/2012,10174744
Resources & Corporate Governance ,Domestic Waste Collection,WWC00,Agency Staff,0003,913.78,Extra Personnel Limited,112996,25/10/2012,10175033
Economy Development & Culture,Visitor Centre,VSC00,Events Tickets - Zero Rated,1405,2039.40,Catteralls Coach and Travel Services,113835,04/10/2012,10173629
Economy Development & Culture,Visitor Centre,VSC00,Events Tickets - Zero Rated,1405,958.95,Catteralls Coach and Travel Services,113835,25/10/2012,10174843
Economy Development & Culture,Ken Marriott Leisure Centre,KML00,External Contractor & Operator,0742,25181.06,DC Leisure Management Ltd (Otium),114443,11/10/2012,10174407
Economy Development & Culture,Art Gallery and Museum,AGM00,Telephone Expenses,0371,592.08,Star Technology Services,114533,11/10/2012,10174311
Housing Revenue Account ,Control Centre (HRA),CCE00,Telephone Expenses,0371,81.00,Star Technology Services,114533,11/10/2012,10174311
Resources & Corporate Governance ,Customer and Information Strategy,CIS10,Telephone Expenses,0371,541.20,Star Technology Services,114533,11/10/2012,10174311
Economy Development & Culture,Car Parks General,CPK01,Telephone Expenses,0371,16.20,Star Technology Services,114533,11/10/2012,10174311
Resources & Corporate Governance ,Council Tax and NNDR Collection,CTX01,Telephone Expenses,0371,81.00,Star Technology Services,114533,11/10/2012,10174311
Economy Development & Culture,Decrim. of Car Parking on street parking,DPE02,Telephone Expenses,0371,64.80,Star Technology Services,114533,11/10/2012,10174311
Economy Development & Culture,Visitor Centre,VSC00,Telephone Expenses,0371,511.08,Star Technology Services,114533,11/10/2012,10174311
Resources & Corporate Governance ,WSU Depot,WDP00,Telephone Expenses,0371,81.00,Star Technology Services,114533,11/10/2012,10174311
Housing Revenue Account ,Unplanned Maintenance and Repair,UMR00,R&M External Contractors,0100,1341.40,Temple Lifts Ltd,114738,18/10/2012,10174251
Sustainable Environment ,Cemeteries General,CEM00,Purchases for Resale,0305,1441.50,Streetmaster (South Wales) Ltd,114898,25/10/2012,10174591
Sustainable Inclusive Communities,Housing Options Team,HOT00,Rents,0140,455.00,Diamond House Hotel,115070,18/10/2012,10174334
Sustainable Inclusive Communities,Housing Options Team,HOT00,Rents,0140,455.00,Diamond House Hotel,115070,25/10/2012,10175135
Resources & Corporate Governance ,WSU Depot,WDP00,Messing Facilities,0332,528.80,Siemens Financial Services Ltd,116057,11/10/2012,10173610
Economy Development & Culture,Street Furniture,HIG01,External Contractor & Operator,0742,525.00,Lushglen,117749,04/10/2012,10174165
Economy Development & Culture,Street Furniture,HIG01,External Contractor & Operator,0742,504.00,Lushglen,117749,11/10/2012,10174441
Resources & Corporate Governance ,Domestic Waste Collection,WWC00,Vehicle Repair and Maintenance,0200,458.60,Farid Municipal Vehicles Limited,118309,25/10/2012,10175029
Sustainable Environment ,Cemeteries General,CEM00,External Contractor & Operator,0742,648.00,MPCS,119391,11/10/2012,10174472
Sustainable Environment ,Caldecott Park/Town Centre Area,PKS00,External Contractor & Operator,0742,4197.60,Bristol City Council,120110,04/10/2012,10173982
Sustainable Environment ,Caldecott Park/Town Centre Area,PKS00,External Contractor & Operator,0742,1326.75,Bristol City Council,120110,04/10/2012,10173983
Sustainable Environment ,Caldecott Park/Town Centre Area,PKS00,External Contractor & Operator,0742,5673.79,Bristol City Council,120110,04/10/2012,10173984
Sustainable Environment ,Caldecott Park/Town Centre Area,PKS00,External Contractor & Operator,0742,3925.40,Bristol City Council,120110,04/10/2012,10173985
Resources & Corporate Governance,Handy man,WHM00,Agency Staff,0003,303.40,G-Staff Ltd,120173,04/10/2012,10173435
Resources & Corporate Governance ,Street Cleansing,WSC00,Agency Staff,0003,368.89,G-Staff Ltd,120173,04/10/2012,10173435
Resources & Corporate Governance ,Domestic Waste Collection,WWC00,Agency Staff,0003,1466.08,G-Staff Ltd,120173,04/10/2012,10173435
Resources & Corporate Governance ,Toilet Cleaning,WBC01,Agency Staff,0003,522.90,G-Staff Ltd,120173,04/10/2012,10173722
Resources & Corporate Governance,Handy man,WHM00,Agency Staff,0003,303.40,G-Staff Ltd,120173,04/10/2012,10173722
Resources & Corporate Governance ,Street Cleansing,WSC00,Agency Staff,0003,268.45,G-Staff Ltd,120173,04/10/2012,10173722
Resources & Corporate Governance ,Domestic Waste Collection,WWC00,Agency Staff,0003,1160.60,G-Staff Ltd,120173,04/10/2012,10173722
Resources & Corporate Governance ,Highways,WHG00,Agency Staff,0003,508.36,G-Staff Ltd,120173,11/10/2012,10174182
Resources & Corporate Governance,Handy man,WHM00,Agency Staff,0003,246.00,G-Staff Ltd,120173,11/10/2012,10174182
Resources & Corporate Governance ,Street Cleansing,WSC00,Agency Staff,0003,299.10,G-Staff Ltd,120173,11/10/2012,10174182
Resources & Corporate Governance ,Domestic Waste Collection,WWC00,Agency Staff,0003,918.70,G-Staff Ltd,120173,11/10/2012,10174182
Resources & Corporate Governance,Handy man,WHM00,Agency Staff,0003,246.00,G-Staff Ltd,120173,11/10/2012,10174357
Resources & Corporate Governance ,Street Cleansing,WSC00,Agency Staff,0003,368.89,G-Staff Ltd,120173,11/10/2012,10174357
Resources & Corporate Governance ,Domestic Waste Collection,WWC00,Agency Staff,0003,1169.04,G-Staff Ltd,120173,11/10/2012,10174357
Resources & Corporate Governance,Handy man,WHM00,Agency Staff,0003,364.90,G-Staff Ltd,120173,25/10/2012,10174723
Resources & Corporate Governance ,Street Cleansing,WSC00,Agency Staff,0003,668.19,G-Staff Ltd,120173,25/10/2012,10174723
Resources & Corporate Governance ,Domestic Waste Collection,WWC00,Agency Staff,0003,915.30,G-Staff Ltd,120173,25/10/2012,10174723
Resources & Corporate Governance,Handy man,WHM00,Agency Staff,0003,307.50,G-Staff Ltd,120173,25/10/2012,10175091
Resources & Corporate Governance ,Street Cleansing,WSC00,Agency Staff,0003,368.89,G-Staff Ltd,120173,25/10/2012,10175091
Resources & Corporate Governance ,Domestic Waste Collection,WWC00,Agency Staff,0003,2347.29,G-Staff Ltd,120173,25/10/2012,10175091
Housing Revenue Account ,Maintenance of Open Spaces,MOS00,External Contractor & Operator,0742,441.26,Brinklow Quarry,122921,11/10/2012,10174163
Resources & Corporate Governance ,Highways,WHG00,External Contractor & Operator,0742,183.59,Brinklow Quarry,122921,11/10/2012,10174163
Resources & Corporate Governance ,Customer and Information Strategy,CIS10,Hardware Maintenance,0376,2619.82,Cable & Wireless,123224,11/10/2012,10174336
Resources & Corporate Governance ,Central Telephone Service,TEL00,Telephone Expenses,0371,1106.04,Cable & Wireless,123224,11/10/2012,10174394
Resources & Corporate Governance ,"Communications, Consultation and Information Team",BTR20,Publicity & Marketing,0377,569.40,Krishna Enterprises Ltd,123590,18/10/2012,10174661
Housing Revenue Account ,Unplanned Maintenance and Repair,UMR00,R&M External Contractors,0100,568.80,Mike Bs Security Locksmith Ltd,123947,18/10/2012,10172679
Resources & Corporate Governance ,IT Procurement,CMP00,IT Capital Expenditure,5025,695.00,Integra Associates Ltd,124585,18/10/2012,10174645
Resources & Corporate Governance ,"Communications, Consultation and Information Team",BTR20,Publicity & Marketing,0377,782.96,Utilitycom Ltd,124856,11/10/2012,10174399
Resources & Corporate Governance ,Maintenance of Customer Services Systems,CIS21,Software Maintenance,0374,520.00,MCPC Systems (UK) Ltd,125225,18/10/2012,10174131
Sustainable Environment,Regulatory Services,REG00,Software/Equipment Licences,0379,1028.28,Airwave Solutions Limited,126436,25/10/2012,10174946
Resources & Corporate Governance ,IT Procurement,CMP00,IT Capital Expenditure,5025,1885.00,Solutech Limited,126545,04/10/2012,10172712
Resources & Corporate Governance ,Customer and Information Strategy,CIS10,Software Maintenance,0374,1890.00,Solutech Limited,126545,25/10/2012,10175133
Housing Revenue Account ,Property Maintenance,MAN23,Asset Management Expenses,0448,450.00,George and Company (Surveyors) Ltd,126668,25/10/2012,10175032
Resources & Corporate Governance,Handy man,WHM00,External Contractor & Operator,0742,527.50,M P Hudson & Son,129334,04/10/2012,10174170
Resources & Corporate Governance,Handy man,WHM00,Contract Hire,0220,72.30,M P Hudson & Son,129334,11/10/2012,10174588
Resources & Corporate Governance,Handy man,WHM00,External Contractor & Operator,0742,562.50,M P Hudson & Son,129334,11/10/2012,10174588
Resources & Corporate Governance,Handy man,WHM00,Contract Hire,0220,20.00,M P Hudson & Son,129334,25/10/2012,10175266
Resources & Corporate Governance,Handy man,WHM00,External Contractor & Operator,0742,592.50,M P Hudson & Son,129334,25/10/2012,10175266
Housing Revenue Account ,Unplanned Maintenance and Repair,UMR00,R&M External Contractors,0100,927.11,National Grid Gas plc,130213,18/10/2012,10174673
Capital Program ,Electric to Gas Conversions,HIM04,Capital Contract Payments,5000,858.00,National Grid Gas plc,130213,18/10/2012,10174674
Economy Development & Culture,Economic Development General,ECD00,Development Activities,0450,3000.00,Rugby First Limited - Town Centre,130214,04/10/2012,10173988
Resources & Corporate Governance ,Domestic Waste Collection,WWC00,Materials,0303,1687.50,Craemer UK Limited,131155,25/10/2012,10174887
Resources & Corporate Governance ,Domestic Waste Collection,WWC00,Materials,0303,12375.00,Craemer UK Limited,131155,25/10/2012,10174888
Resources & Corporate Governance ,Borough Elections,ELC00,Training fees,0011,1540.11,Association of Electoral Administrators,131701,04/10/2012,10174146
Economy Development & Culture,Decrim. of Car Parking on street parking,DPE02,Cash Collection,0744,591.84,Jade Security Services Ltd,131711,11/10/2012,10174308
Economy Development & Culture,Car Parks General,CPK01,Cash Collection,0744,953.52,Jade Security Services Ltd,131711,11/10/2012,10174309
Economy Development & Culture,Car Parks General,CPK01,Training fees,0011,177.00,Alpha Parking Ltd,131720,11/10/2012,10173873
Economy Development & Culture,Decrim. of Car Parking on street parking,DPE02,Training fees,0011,708.00,Alpha Parking Ltd,131720,11/10/2012,10173873
Capital Program ,Disabled Facilities Grant,REN01,Capital Grants,5014,2000.00,D K Builders,131946,11/10/2012,10174319
Sustainable Inclusive Communities,Housing Options Team,HOT00,Rents,0140,504.00,N Mallidi,132033,25/10/2012,10174758
Housing Revenue Account ,Unplanned Maintenance and Repair,UMR00,R&M External Contractors,0100,536.53,Wilson Electrics,132051,04/10/2012,10174224
Housing Revenue Account ,Supervision and Management General,MAN00,Movement Incentives,0454,500.00,REDACTED PERSONAL DATA,132518,18/10/2012,10174643
Resources & Corporate Governance,Handy man,WHM00,External Contractor & Operator,0742,1084.74,Homecare Decorating,133884,04/10/2012,10174117
Resources & Corporate Governance,Handy man,WHM00,External Contractor & Operator,0742,1286.74,Homecare Decorating,133884,18/10/2012,10174341
Resources & Corporate Governance,Handy man,WHM00,External Contractor & Operator,0742,664.74,Homecare Decorating,133884,18/10/2012,10174344
Resources & Corporate Governance,Handy man,WHM00,External Contractor & Operator,0742,601.74,Homecare Decorating,133884,18/10/2012,10174345
Resources & Corporate Governance,Handy man,WHM00,External Contractor & Operator,0742,1100.59,Homecare Decorating,133884,18/10/2012,10174346
Resources & Corporate Governance,Handy man,WHM00,External Contractor & Operator,0742,1467.04,Homecare Decorating,133884,18/10/2012,10174347
Resources & Corporate Governance,Handy man,WHM00,External Contractor & Operator,0742,592.00,Homecare Decorating,133884,18/10/2012,10174348
Resources & Corporate Governance,Corporate Property R&M,CPA01,R&M External Contractors,0100,4788.47,Sunfish Services Ltd,133886,18/10/2012,10174149
Housing Revenue Account ,Unplanned Maintenance and Repair,UMR00,R&M External Contractors,0100,1677.43,Delec Ltd,133887,04/10/2012,10174077
Housing Revenue Account ,Sheltered Housing Team,MAN21,Estates,0457,18.55,Delec Ltd,133887,04/10/2012,10174077
Housing Revenue Account ,Unplanned Maintenance and Repair,UMR00,R&M External Contractors,0100,1923.50,Delec Ltd,133887,04/10/2012,10174078
Housing Revenue Account ,Unplanned Maintenance and Repair,UMR00,R&M External Contractors,0100,863.26,Delec Ltd,133887,11/10/2012,10174429
Housing Revenue Account ,Unplanned Maintenance and Repair,UMR00,R&M External Contractors,0100,1282.80,Delec Ltd,133887,11/10/2012,10174539
Housing Revenue Account ,Unplanned Maintenance and Repair,UMR00,R&M External Contractors,0100,1695.10,Delec Ltd,133887,18/10/2012,10174711
Housing Revenue Account ,Unplanned Maintenance and Repair,UMR00,R&M External Contractors,0100,650.26,Delec Ltd,133887,25/10/2012,10175075
Sustainable Inclusive Communities,Woodside Park,TVR00,R&M External Contractors,0100,18.55,Delec Ltd,133887,25/10/2012,10175283
Housing Revenue Account ,Unplanned Maintenance and Repair,UMR00,R&M External Contractors,0100,3014.46,Delec Ltd,133887,25/10/2012,10175283
Economy Development & Culture,Car Parks General,CPK01,Other Agencies,0734,420.00,24181 TEC,133967,11/10/2012,10174202
Economy Development & Culture,Decrim. of Car Parking on street parking,DPE02,Other Agencies,0734,1680.00,24181 TEC,133967,11/10/2012,10174202
Housing Revenue Account ,Sheltered Housing,AGP00,Other Miscellaneous Expenses,0444,29429.00,Midland Heart Ltd,134018,11/10/2012,10174082
Resources & Corporate Governance ,Human Resources Centralised Services,RES31,Training fees,0011,1700.00,Staffordshire University,135454,18/10/2012,10174759
Housing Revenue Account ,Alfred Green Close AP,AGP01,Electricity,0130,4.95,Southern Electric,135653,18/10/2012,10173820
Housing Revenue Account ,Duffy Place AP,AGP04,Electricity,0130,-97.27,Southern Electric,135653,18/10/2012,10173820
Housing Revenue Account ,Frederick Press Way AP,AGP06,Electricity,0130,-178.15,Southern Electric,135653,18/10/2012,10173820
Housing Revenue Account ,John Thwaites Close AP,AGP08,Electricity,0130,29.00,Southern Electric,135653,18/10/2012,10173820
Housing Revenue Account ,Robotham Close AP,AGP11,Electricity,0130,419.63,Southern Electric,135653,18/10/2012,10173820
Housing Revenue Account ,Stacey Court AP,AGP12,Electricity,0130,2.31,Southern Electric,135653,18/10/2012,10173820
Housing Revenue Account ,Stretton Court AP,AGP13,Electricity,0130,274.76,Southern Electric,135653,18/10/2012,10173820
Housing Revenue Account ,Sun Street/Windsor Street AP,AGP14,Electricity,0130,-18.94,Southern Electric,135653,18/10/2012,10173820
Housing Revenue Account ,Tanser Court AP,AGP17,Electricity,0130,-871.03,Southern Electric,135653,18/10/2012,10173820
Housing Revenue Account ,Eliot Court AP,AGP25,Electricity,0130,-76.25,Southern Electric,135653,18/10/2012,10173820
Housing Revenue Account ,Alexandra/James Court AP,AGP30,Electricity,0130,-526.91,Southern Electric,135653,18/10/2012,10173820
Housing Revenue Account ,Assheton Close AP,AGP36,Electricity,0130,-1.47,Southern Electric,135653,18/10/2012,10173820
Housing Revenue Account ,Brookside Pailton AP,AGP40,Electricity,0130,210.70,Southern Electric,135653,18/10/2012,10173820
Housing Revenue Account ,Deepmore Road/Lytham Road AP,AGP42,Electricity,0130,-87.05,Southern Electric,135653,18/10/2012,10173820
Housing Revenue Account ,Featherbed Lane I AP,AGP45,Electricity,0130,-18.03,Southern Electric,135653,18/10/2012,10173820
Housing Revenue Account ,Fox Close AP,AGP47,Electricity,0130,18.33,Southern Electric,135653,18/10/2012,10173820
Housing Revenue Account ,Great Balance Brinklow AP,AGP48,Electricity,0130,49.87,Southern Electric,135653,18/10/2012,10173820
Housing Revenue Account ,Meadow Way/Primrose Court AP,AGP58,Electricity,0130,37.04,Southern Electric,135653,18/10/2012,10173820
Housing Revenue Account ,Norman Road AP,AGP60,Electricity,0130,27.79,Southern Electric,135653,18/10/2012,10173820
Housing Revenue Account ,Patterdale AP,AGP61,Electricity,0130,-575.35,Southern Electric,135653,18/10/2012,10173820
Housing Revenue Account ,Parkfield Road/Lea Crescent AP,AGP71,Electricity,0130,156.53,Southern Electric,135653,18/10/2012,10173820
Housing Revenue Account ,Supervision and Management General,MAN00,Electricity,0130,240.04,Southern Electric,135653,18/10/2012,10173820
Housing Revenue Account ,Alfred Green Close AP,AGP01,Electricity,0130,159.70,Southern Electric,135653,18/10/2012,10174836
Housing Revenue Account ,Avon Court AP,AGP02,Electricity,0130,491.42,Southern Electric,135653,18/10/2012,10174836
Housing Revenue Account ,Dickinson Court AP,AGP03,Electricity,0130,138.03,Southern Electric,135653,18/10/2012,10174836
Housing Revenue Account ,Duffy Place AP,AGP04,Electricity,0130,499.27,Southern Electric,135653,18/10/2012,10174836
Housing Revenue Account ,Frederick Press Way AP,AGP06,Electricity,0130,940.62,Southern Electric,135653,18/10/2012,10174836
Housing Revenue Account ,John Thwaites Close AP,AGP08,Electricity,0130,249.07,Southern Electric,135653,18/10/2012,10174836
Housing Revenue Account ,Mercer Court AP,AGP09,Electricity,0130,357.81,Southern Electric,135653,18/10/2012,10174836
Housing Revenue Account ,Pettiver Crescent I AP,AGP10,Electricity,0130,847.51,Southern Electric,135653,18/10/2012,10174836
Housing Revenue Account ,Robotham Close AP,AGP11,Electricity,0130,131.40,Southern Electric,135653,18/10/2012,10174836
Housing Revenue Account ,Stacey Court AP,AGP12,Electricity,0130,824.47,Southern Electric,135653,18/10/2012,10174836
Housing Revenue Account ,Sun Street/Windsor Street AP,AGP14,Electricity,0130,595.40,Southern Electric,135653,18/10/2012,10174836
Housing Revenue Account ,Lesley Souter House AP,AGP16,Electricity,0130,1227.51,Southern Electric,135653,18/10/2012,10174836
Housing Revenue Account ,Tanser Court AP,AGP17,Electricity,0130,1375.35,Southern Electric,135653,18/10/2012,10174836
Housing Revenue Account ,Edward Court AP,AGP19,Electricity,0130,431.32,Southern Electric,135653,18/10/2012,10174836
Housing Revenue Account ,Albert Square AP,AGP20,Electricity,0130,107.94,Southern Electric,135653,18/10/2012,10174836
Housing Revenue Account ,Eliot Court AP,AGP25,Electricity,0130,63.13,Southern Electric,135653,18/10/2012,10174836
Housing Revenue Account ,Clare Court Site,AGP27,Electricity,0130,93.19,Southern Electric,135653,18/10/2012,10174836
Housing Revenue Account ,Alexandra/James Court AP,AGP30,Electricity,0130,388.78,Southern Electric,135653,18/10/2012,10174836
Housing Revenue Account ,Assheton Close AP,AGP36,Electricity,0130,71.63,Southern Electric,135653,18/10/2012,10174836
Housing Revenue Account ,Bennett Court/Warwick Road AP,AGP38,Electricity,0130,26.97,Southern Electric,135653,18/10/2012,10174836
Housing Revenue Account ,Brookside Pailton AP,AGP40,Electricity,0130,35.37,Southern Electric,135653,18/10/2012,10174836
Housing Revenue Account ,Clifton Road AP,AGP41,Electricity,0130,49.45,Southern Electric,135653,18/10/2012,10174836
Housing Revenue Account ,Deepmore Road/Lytham Road AP,AGP42,Electricity,0130,237.92,Southern Electric,135653,18/10/2012,10174836
Housing Revenue Account ,Featherbed Lane I AP,AGP45,Electricity,0130,506.04,Southern Electric,135653,18/10/2012,10174836
Housing Revenue Account ,Fox Close AP,AGP47,Electricity,0130,48.37,Southern Electric,135653,18/10/2012,10174836
Housing Revenue Account ,Jackson Road I AP,AGP53,Electricity,0130,47.31,Southern Electric,135653,18/10/2012,10174836
Housing Revenue Account ,Lever Road I AP,AGP57,Electricity,0130,527.63,Southern Electric,135653,18/10/2012,10174836
Housing Revenue Account ,Norman Road AP,AGP60,Electricity,0130,8.34,Southern Electric,135653,18/10/2012,10174836
Housing Revenue Account ,The Kent AP,AGP67,Electricity,0130,91.20,Southern Electric,135653,18/10/2012,10174836
Housing Revenue Account ,Victoria Street/Lawford Road AP,AGP68,Electricity,0130,37.22,Southern Electric,135653,18/10/2012,10174836
Housing Revenue Account ,Pennington Street/Round Street AP,AGP72,Electricity,0130,250.94,Southern Electric,135653,18/10/2012,10174836
Housing Revenue Account ,Control Centre CCTV,CCE01,Electricity,0130,1050.53,Southern Electric,135653,18/10/2012,10174836
Housing Revenue Account ,Supervision and Management General,MAN00,Electricity,0130,198.62,Southern Electric,135653,18/10/2012,10174836
Housing Revenue Account ,Multi-Storey Flats,MSF00,Electricity,0130,7431.76,Southern Electric,135653,18/10/2012,10174836
Resources & Corporate Governance ,Street Cleansing,WSC00,Materials,0303,430.00,Danline International Ltd,137588,11/10/2012,10174167
Economy Development & Culture,Sports Development,LSD06,Development Activities,0450,1410.00,Rugby & Northampton Athletic Club,138672,04/10/2012,10174198
Housing Revenue Account ,Unplanned Maintenance and Repair,UMR00,R&M External Contractors,0100,2731.75,Regent Office Care Ltd T/A Regent Cleaning,138934,11/10/2012,10174430
Resources & Corporate Governance ,Town Hall,OFF00,Contract Cleaning,0170,4280.55,Regent Office Care Ltd T/A Regent Cleaning,138934,18/10/2012,10174528
Resources & Corporate Governance ,WSU Depot,WDP00,Contract Cleaning,0170,219.00,Regent Office Care Ltd T/A Regent Cleaning,138934,18/10/2012,10174528
Resources & Corporate Governance ,Grounds Maintenance,WGM00,Contract Cleaning,0170,147.50,Regent Office Care Ltd T/A Regent Cleaning,138934,18/10/2012,10174528
Housing Revenue Account ,Sheltered Housing,AGP00,Contract Cleaning,0170,14297.47,Regent Office Care Ltd T/A Regent Cleaning,138934,18/10/2012,10174529
Sustainable Inclusive Communities,Housing Options Team,HOT00,Contract Cleaning,0170,134.76,Regent Office Care Ltd T/A Regent Cleaning,138934,18/10/2012,10174529
Housing Revenue Account ,Estate Management,MAN22,Contract Cleaning,0170,3078.90,Regent Office Care Ltd T/A Regent Cleaning,138934,18/10/2012,10174529
Housing Revenue Account ,Multi-Storey Flats,MSF00,Contract Cleaning,0170,1731.90,Regent Office Care Ltd T/A Regent Cleaning,138934,18/10/2012,10174529
Housing Revenue Account ,Unplanned Maintenance and Repair,UMR00,R&M External Contractors,0100,748.04,Regent Office Care Ltd T/A Regent Cleaning,138934,11/10/2012,10174625
Housing Revenue Account ,Unplanned Maintenance and Repair,UMR00,R&M External Contractors,0100,1157.14,Regent Office Care Ltd T/A Regent Cleaning,138934,25/10/2012,10175284
Resources & Corporate Governance ,Council Tax and NNDR Collection,CTX01,Other,0763,2200.00,Mag:net Solutions Ltd,139547,11/10/2012,10174519
Housing Revenue Account ,Unplanned Maintenance and Repair,UMR00,R&M External Contractors,0100,2295.00,Rider Levett Bucknall UK Ltd,139918,04/10/2012,10174074
Housing Revenue Account ,Unplanned Maintenance and Repair,UMR00,R&M External Contractors,0100,95.00,Rider Levett Bucknall UK Ltd,139918,11/10/2012,10174537
Housing Revenue Account ,Electrical Inspections,UMR04,R&M External Contractors,0100,225.00,Rider Levett Bucknall UK Ltd,139918,11/10/2012,10174537
Housing Revenue Account ,Asbestos Surveys,UMR05,R&M External Contractors,0100,1170.00,Rider Levett Bucknall UK Ltd,139918,11/10/2012,10174537
Capital Program ,Kitchen Modifications,HIK10,Capital Contract Payments,5000,260.00,Rider Levett Bucknall UK Ltd,139918,11/10/2012,10174537
Capital Program ,Electric to Gas Conversions,HIM04,Capital Contract Payments,5000,260.00,Rider Levett Bucknall UK Ltd,139918,11/10/2012,10174537
Capital Program ,Bathroom Modifications,HIS01,Capital Contract Payments,5000,130.00,Rider Levett Bucknall UK Ltd,139918,11/10/2012,10174537
Sustainable Environment ,Allotments,ALL00,R&M External Contractors,0100,575.00,D J Whitlock Plant Hire,140156,04/10/2012,10173943
Resources & Corporate Governance ,Grounds Maintenance,WGM00,External Contractor & Operator,0742,3300.00,D J Whitlock Plant Hire,140156,11/10/2012,10174301
Resources & Corporate Governance ,Grounds Maintenance,WGM00,External Contractor & Operator,0742,1200.00,D J Whitlock Plant Hire,140156,11/10/2012,10174302
Resources & Corporate Governance ,Grounds Maintenance,WGM00,External Contractor & Operator,0742,1890.00,D J Whitlock Plant Hire,140156,11/10/2012,10174303
Resources & Corporate Governance ,Grounds Maintenance,WGM00,External Contractor & Operator,0742,2140.00,D J Whitlock Plant Hire,140156,11/10/2012,10174304
Resources & Corporate Governance ,Grounds Maintenance,WGM00,External Contractor & Operator,0742,1200.00,D J Whitlock Plant Hire,140156,11/10/2012,10174305
Resources & Corporate Governance ,Grounds Maintenance,WGM00,External Contractor & Operator,0742,950.00,D J Whitlock Plant Hire,140156,11/10/2012,10174306
Resources & Corporate Governance ,Grounds Maintenance,WGM00,External Contractor & Operator,0742,1520.00,D J Whitlock Plant Hire,140156,25/10/2012,10175078
Sustainable Environment ,Street Scene,ENV30,R&M External Contractors,0100,700.00,Goddard Consulting LLP,140373,25/10/2012,10175098
Housing Revenue Account ,Unplanned Maintenance and Repair,UMR00,R&M External Contractors,0100,137.31,Carpenter Surveyors Ltd,141374,11/10/2012,10174424
Housing Revenue Account ,Property Maintenance,MAN23,External Contractor & Operator,0742,320.39,Carpenter Surveyors Ltd,141374,11/10/2012,10174424
Resources & Corporate Governance ,Maintenance of Customer Services Systems,CIS21,Subscriptions,0421,3000.00,Access Intelligence Media & Comm Ltd,141464,25/10/2012,10174912
Resources & Corporate Governance ,Customer and Information Strategy,CIS10,Telephone Expenses,0371,793.16,Zen Internet Ltd,141612,25/10/2012,10175111
Housing Revenue Account ,Unplanned Maintenance and Repair,UMR00,R&M External Contractors,0100,680.00,Ascertiva Group Ltd,142076,25/10/2012,10168733
Capital Program ,Bathroom Modifications,HIS01,Capital Contract Payments,5000,49335.00,Ian Williams Ltd,142238,18/10/2012,10174298
Capital Program ,Bathroom Modifications,HIS01,Capital Contract Payments,5000,27885.00,Ian Williams Ltd,142238,25/10/2012,10174937
Resources & Corporate Governance ,Human Resources Centralised Services,RES31,Training fees,0011,4000.00,Worcestershire County Cuncil,142507,04/10/2012,10173976
Resources & Corporate Governance ,Customer and Information Strategy,CIS10,Software Maintenance,0374,907.92,Commercial Ltd,143873,11/10/2012,10174385
Resources & Corporate Governance ,Customer and Information Strategy,CIS10,Software Maintenance,0374,16265.00,Commercial Ltd,143873,11/10/2012,10174386
Housing Revenue Account ,Control Centre CCTV,CCE01,External Contractor & Operator,0742,15928.66,Securitas Security Personnel Ltd,145079,04/10/2012,10173878
Housing Revenue Account ,Control Centre CCTV,CCE01,External Contractor & Operator,0742,15928.66,Securitas Security Personnel Ltd,145079,04/10/2012,10174135
Sustainable Inclusive Communities,Housing Strategy & Enabling,HSE00,Agency Staff,0003,623.58,James Andrews Recruitment Solutions Ltd,145100,04/10/2012,10173989
Sustainable Inclusive Communities,Housing Strategy & Enabling,HSE00,Agency Staff,0003,627.68,James Andrews Recruitment Solutions Ltd,145100,18/10/2012,10174255
Housing Revenue Account ,Property Maintenance,MAN23,Agency Staff,0003,1196.25,James Andrews Recruitment Solutions Ltd,145100,11/10/2012,10174321
Housing Revenue Account ,Property Maintenance,MAN23,Agency Staff,0003,1131.00,James Andrews Recruitment Solutions Ltd,145100,11/10/2012,10174322
Housing Revenue Account ,Property Maintenance,MAN23,Agency Staff,0003,1094.75,James Andrews Recruitment Solutions Ltd,145100,11/10/2012,10174323
Housing Revenue Account ,Property Maintenance,MAN23,Agency Staff,0003,1174.50,James Andrews Recruitment Solutions Ltd,145100,18/10/2012,10174601
Sustainable Inclusive Communities,Housing Strategy & Enabling,HSE00,Agency Staff,0003,492.30,James Andrews Recruitment Solutions Ltd,145100,18/10/2012,10174606
Housing Revenue Account ,Property Maintenance,MAN23,Agency Staff,0003,1073.00,James Andrews Recruitment Solutions Ltd,145100,18/10/2012,10174847
Sustainable Inclusive Communities,Housing Strategy & Enabling,HSE00,Agency Staff,0003,615.38,James Andrews Recruitment Solutions Ltd,145100,25/10/2012,10175069
Housing Revenue Account ,Property Maintenance,MAN23,Agency Staff,0003,1160.00,James Andrews Recruitment Solutions Ltd,145100,25/10/2012,10175293
Resources & Corporate Governance ,Support Services,CIS20,Training fees,0011,16382.00,QA Limited,145203,11/10/2012,10174148
Resources & Corporate Governance ,General Financial Services,GFS00,External Contractor & Operator,0742,680.00,LAVAT Consulting Limited,145204,11/10/2012,10174260
Resources & Corporate Governance,Handy man,WHM00,Agency Staff,0003,54.60,Blue Arrow Limited,145492,04/10/2012,10173171
Resources & Corporate Governance ,Street Cleansing,WSC00,Agency Staff,0003,520.45,Blue Arrow Limited,145492,04/10/2012,10173171
Resources & Corporate Governance ,Domestic Waste Collection,WWC00,Agency Staff,0003,445.36,Blue Arrow Limited,145492,04/10/2012,10173171
Resources & Corporate Governance ,Street Cleansing,WSC00,Agency Staff,0003,595.00,Blue Arrow Limited,145492,04/10/2012,10173571
Resources & Corporate Governance ,Street Cleansing,WSC00,Agency Staff,0003,759.74,Blue Arrow Limited,145492,04/10/2012,10173786
Resources & Corporate Governance ,Domestic Waste Collection,WWC00,Agency Staff,0003,83.18,Blue Arrow Limited,145492,04/10/2012,10173786
Resources & Corporate Governance ,WSU Depot,WDP00,Messing Facilities,0332,2453.85,Three Counties Steel Buildings Limited,145562,04/10/2012,10173559
Housing Revenue Account ,Supervision and Management General,MAN00,Publicity & Marketing,0377,1173.42,Impress Print,145574,04/10/2012,10173859
Sustainable Inclusive Communities,Housing Strategy & Enabling,HSE00,Consultancy Costs,0740,2495.60,Housing Partners Ltd,145649,04/10/2012,10174200
Resources & Corporate Governance ,Highways,WHG00,Materials,0303,700.34,Midland Rock Leicester Ltd,145830,11/10/2012,10174475
Capital Program ,Disabled Facilities Grant,REN01,Capital Grants,5014,4377.00,Inhouse Renovations,145963,18/10/2012,10174325
Capital Program ,Disabled Facilities Grant,REN01,Capital Grants,5014,3181.42,Inhouse Renovations,145963,18/10/2012,10174721
Capital Program ,Disabled Facilities Grant,REN01,Capital Grants,5014,3216.35,Inhouse Renovations,145963,25/10/2012,10175061
Resources & Corporate Governance ,Human Resources Centralised Services,RES31,Training fees,0011,1030.75,SB Asbestos Management Ltd,146090,04/10/2012,10173876
Resources & Corporate Governance,Handy man,WHM00,External Contractor & Operator,0742,600.00,Mick Brown Plastering,146699,04/10/2012,10173923
Resources & Corporate Governance ,Trade Waste Collection,WWC01,Agency Staff,0003,467.41,Fresh Recruitment Solutions (FRS) Ltd,146784,04/10/2012,10173247
Resources & Corporate Governance ,Domestic Waste Collection,WWC00,Agency Staff,0003,498.49,Fresh Recruitment Solutions (FRS) Ltd,146784,11/10/2012,10173249
Resources & Corporate Governance ,Domestic Waste Collection,WWC00,Agency Staff,0003,498.49,Fresh Recruitment Solutions (FRS) Ltd,146784,11/10/2012,10173590
Resources & Corporate Governance,Handy man,WHM00,Agency Staff,0003,457.19,Fresh Recruitment Solutions (FRS) Ltd,146784,04/10/2012,10173598
Resources & Corporate Governance,Handy man,WHM00,Agency Staff,0003,459.80,Fresh Recruitment Solutions (FRS) Ltd,146784,04/10/2012,10173911
Resources & Corporate Governance ,Trade Waste Collection,WWC01,Agency Staff,0003,574.21,Fresh Recruitment Solutions (FRS) Ltd,146784,04/10/2012,10173918
Resources & Corporate Governance,Handy man,WHM00,Agency Staff,0003,445.67,Fresh Recruitment Solutions (FRS) Ltd,146784,25/10/2012,10174932
Resources & Corporate Governance ,Trade Waste Collection,WWC01,Agency Staff,0003,599.45,Fresh Recruitment Solutions (FRS) Ltd,146784,25/10/2012,10174934
Resources & Corporate Governance,Corporate Property R&M,CPA01,R&M External Contractors,0100,850.00,Environmental Essentials Ltd,146842,18/10/2012,10174665
Resources & Corporate Governance ,Retired Employees,RET00,Additional Pension Payments,0014,11636.85,WCC Pension Fund,146914,25/10/2012,10174955
Economy Development & Culture,Building Control Services,BCS00,Postage & Distribution,0370,6.17,TNT Post Midlands Ltd,146983,25/10/2012,10173037
Economy Development & Culture,Building Regulation Fee Earning Account,BCS99,Postage & Distribution,0370,8.18,TNT Post Midlands Ltd,146983,25/10/2012,10173037
Resources & Corporate Governance,Central Business Support Services,CSS15,Postage & Distribution,0370,33.85,TNT Post Midlands Ltd,146983,25/10/2012,10173037
Resources & Corporate Governance ,Council Tax and NNDR Collection,CTX01,Postage & Distribution,0370,167.52,TNT Post Midlands Ltd,146983,25/10/2012,10173037
Resources & Corporate Governance ,Electoral Registration,ERG00,Postage & Distribution,0370,14.31,TNT Post Midlands Ltd,146983,25/10/2012,10173037
Sustainable Inclusive Communities,Housing Benefit Administration,HBA00,Postage & Distribution,0370,137.78,TNT Post Midlands Ltd,146983,25/10/2012,10173037
Housing Revenue Account ,Supervision and Management General,MAN00,Postage & Distribution,0370,91.94,TNT Post Midlands Ltd,146983,25/10/2012,10173037
Resources & Corporate Governance ,General Administration,WAD00,Postage & Distribution,0370,3.09,TNT Post Midlands Ltd,146983,25/10/2012,10173037
Economy Development & Culture,Art Gallery and Museum,AGM00,Postage & Distribution,0370,45.34,TNT Post Midlands Ltd,146983,04/10/2012,10173782
Economy Development & Culture,Building Control Services,BCS00,Postage & Distribution,0370,6.67,TNT Post Midlands Ltd,146983,04/10/2012,10173782
Economy Development & Culture,Building Regulation Fee Earning Account,BCS99,Postage & Distribution,0370,8.85,TNT Post Midlands Ltd,146983,04/10/2012,10173782
Resources & Corporate Governance,Central Business Support Services,CSS15,Postage & Distribution,0370,59.87,TNT Post Midlands Ltd,146983,04/10/2012,10173782
Resources & Corporate Governance ,Council Tax and NNDR Collection,CTX01,Postage & Distribution,0370,198.46,TNT Post Midlands Ltd,146983,04/10/2012,10173782
Resources & Corporate Governance ,Electoral Registration,ERG00,Postage & Distribution,0370,2.57,TNT Post Midlands Ltd,146983,04/10/2012,10173782
Sustainable Inclusive Communities,Housing Benefit Administration,HBA00,Postage & Distribution,0370,110.06,TNT Post Midlands Ltd,146983,04/10/2012,10173782
Housing Revenue Account ,Supervision and Management General,MAN00,Postage & Distribution,0370,45.91,TNT Post Midlands Ltd,146983,04/10/2012,10173782
Resources & Corporate Governance ,General Administration,WAD00,Postage & Distribution,0370,7.40,TNT Post Midlands Ltd,146983,04/10/2012,10173782
Economy Development & Culture,Art Gallery and Museum,AGM00,Postage & Distribution,0370,405.23,TNT Post Midlands Ltd,146983,04/10/2012,10173909
Economy Development & Culture,Building Control Services,BCS00,Postage & Distribution,0370,0.64,TNT Post Midlands Ltd,146983,04/10/2012,10173909
Economy Development & Culture,Building Regulation Fee Earning Account,BCS99,Postage & Distribution,0370,0.86,TNT Post Midlands Ltd,146983,04/10/2012,10173909
Resources & Corporate Governance,Central Business Support Services,CSS15,Postage & Distribution,0370,30.08,TNT Post Midlands Ltd,146983,04/10/2012,10173909
Resources & Corporate Governance ,Council Tax and NNDR Collection,CTX01,Postage & Distribution,0370,143.59,TNT Post Midlands Ltd,146983,04/10/2012,10173909
Resources & Corporate Governance ,Electoral Registration,ERG00,Postage & Distribution,0370,1.14,TNT Post Midlands Ltd,146983,04/10/2012,10173909
Sustainable Inclusive Communities,Housing Benefit Administration,HBA00,Postage & Distribution,0370,106.44,TNT Post Midlands Ltd,146983,04/10/2012,10173909
Housing Revenue Account ,Supervision and Management General,MAN00,Postage & Distribution,0370,10.48,TNT Post Midlands Ltd,146983,04/10/2012,10173909
Resources & Corporate Governance ,General Administration,WAD00,Postage & Distribution,0370,1.60,TNT Post Midlands Ltd,146983,04/10/2012,10173909
Economy Development & Culture,Art Gallery and Museum,AGM00,Postage & Distribution,0370,0.85,TNT Post Midlands Ltd,146983,04/10/2012,10174085
Economy Development & Culture,Building Control Services,BCS00,Postage & Distribution,0370,7.04,TNT Post Midlands Ltd,146983,04/10/2012,10174085
Economy Development & Culture,Building Regulation Fee Earning Account,BCS99,Postage & Distribution,0370,9.34,TNT Post Midlands Ltd,146983,04/10/2012,10174085
Resources & Corporate Governance,Central Business Support Services,CSS15,Postage & Distribution,0370,51.64,TNT Post Midlands Ltd,146983,04/10/2012,10174085
Resources & Corporate Governance ,Council Tax and NNDR Collection,CTX01,Postage & Distribution,0370,229.83,TNT Post Midlands Ltd,146983,04/10/2012,10174085
Resources & Corporate Governance ,Electoral Registration,ERG00,Postage & Distribution,0370,20.15,TNT Post Midlands Ltd,146983,04/10/2012,10174085
Sustainable Inclusive Communities,Housing Benefit Administration,HBA00,Postage & Distribution,0370,184.52,TNT Post Midlands Ltd,146983,04/10/2012,10174085
Housing Revenue Account ,Supervision and Management General,MAN00,Postage & Distribution,0370,54.19,TNT Post Midlands Ltd,146983,04/10/2012,10174085
Economy Development & Culture,Planning General/Income,PLN00,Postage & Distribution,0370,9.65,TNT Post Midlands Ltd,146983,04/10/2012,10174085
Resources & Corporate Governance ,General Administration,WAD00,Postage & Distribution,0370,3.97,TNT Post Midlands Ltd,146983,04/10/2012,10174085
Economy Development & Culture,Art Gallery and Museum,AGM00,Postage & Distribution,0370,0.29,TNT Post Midlands Ltd,146983,18/10/2012,10174390
Economy Development & Culture,Building Control Services,BCS00,Postage & Distribution,0370,6.28,TNT Post Midlands Ltd,146983,18/10/2012,10174390
Economy Development & Culture,Building Regulation Fee Earning Account,BCS99,Postage & Distribution,0370,8.33,TNT Post Midlands Ltd,146983,18/10/2012,10174390
Resources & Corporate Governance,Central Business Support Services,CSS15,Postage & Distribution,0370,70.88,TNT Post Midlands Ltd,146983,18/10/2012,10174390
Resources & Corporate Governance ,Council Tax and NNDR Collection,CTX01,Postage & Distribution,0370,174.15,TNT Post Midlands Ltd,146983,18/10/2012,10174390
Resources & Corporate Governance ,Electoral Registration,ERG00,Postage & Distribution,0370,10.56,TNT Post Midlands Ltd,146983,18/10/2012,10174390
Sustainable Inclusive Communities,Housing Benefit Administration,HBA00,Postage & Distribution,0370,138.75,TNT Post Midlands Ltd,146983,18/10/2012,10174390
Housing Revenue Account ,Supervision and Management General,MAN00,Postage & Distribution,0370,46.54,TNT Post Midlands Ltd,146983,18/10/2012,10174390
Resources & Corporate Governance ,General Administration,WAD00,Postage & Distribution,0370,2.28,TNT Post Midlands Ltd,146983,18/10/2012,10174390
Economy Development & Culture,Building Control Services,BCS00,Postage & Distribution,0370,2.07,TNT Post Midlands Ltd,146983,18/10/2012,10174595
Economy Development & Culture,Building Regulation Fee Earning Account,BCS99,Postage & Distribution,0370,2.75,TNT Post Midlands Ltd,146983,18/10/2012,10174595
Resources & Corporate Governance,Central Business Support Services,CSS15,Postage & Distribution,0370,17.38,TNT Post Midlands Ltd,146983,18/10/2012,10174595
Resources & Corporate Governance ,Council Tax and NNDR Collection,CTX01,Postage & Distribution,0370,219.37,TNT Post Midlands Ltd,146983,18/10/2012,10174595
Resources & Corporate Governance ,Electoral Registration,ERG00,Postage & Distribution,0370,10.38,TNT Post Midlands Ltd,146983,18/10/2012,10174595
Sustainable Inclusive Communities,Housing Benefit Administration,HBA00,Postage & Distribution,0370,134.88,TNT Post Midlands Ltd,146983,18/10/2012,10174595
Housing Revenue Account ,Supervision and Management General,MAN00,Postage & Distribution,0370,40.91,TNT Post Midlands Ltd,146983,18/10/2012,10174595
Resources & Corporate Governance ,General Administration,WAD00,Postage & Distribution,0370,3.56,TNT Post Midlands Ltd,146983,18/10/2012,10174595
Housing Revenue Account ,Gas Heating Systems,UMR01,R&M External Contractors,0100,54652.36,Integral UK Ltd,147080,11/10/2012,10171035
Housing Revenue Account ,Gas Heating Systems,UMR01,R&M External Contractors,0100,18388.67,Integral UK Ltd,147080,04/10/2012,10172443
Housing Revenue Account ,Gas Heating Systems,UMR01,R&M External Contractors,0100,31127.19,Integral UK Ltd,147080,04/10/2012,10174040
Housing Revenue Account ,Unplanned Maintenance and Repair,UMR00,R&M External Contractors,0100,496.76,Integral UK Ltd,147080,18/10/2012,10174130
Housing Revenue Account ,Gas Heating Systems,UMR01,R&M External Contractors,0100,620.76,Integral UK Ltd,147080,18/10/2012,10174130
Housing Revenue Account ,Asbestos Surveys,UMR05,R&M External Contractors,0100,110.00,Integral UK Ltd,147080,18/10/2012,10174130
Housing Revenue Account ,Carbon Monoxide Detectors,UMR07,R&M External Contractors,0100,84.54,Integral UK Ltd,147080,18/10/2012,10174130
Capital Program ,Disabled Adaptations,HCR01,Capital Contract Payments,5000,6977.60,Intelligent Disabled Solutions Ltd,147081,04/10/2012,10174225
Capital Program ,Disabled Adaptations,HCR01,Capital Contract Payments,5000,11349.45,Intelligent Disabled Solutions Ltd,147081,18/10/2012,10174709
Capital Program ,Queen's Diamond Jubilee Leisure Centre Project,LEI03,Capital Contract Payments,5000,4428.75,B3 Architects,147190,18/10/2012,10174136
Capital Program ,Queen's Diamond Jubilee Leisure Centre Project,LEI03,Capital Contract Payments,5000,700.00,B3 Architects,147190,18/10/2012,10174137
Capital Program ,Depot and Recycling Improvements,RCY02,Capital Contract Payments,5000,620.03,C H Electrical (Leics) Ltd,147209,11/10/2012,10173972
Economy Development & Culture,The Benn Hall,BHL00,Contract Cleaning,0170,41.00,SJ Cleaning (Midlands) Ltd,147273,11/10/2012,10174181
Sustainable Environment ,Cemeteries General,CEM00,Contract Cleaning,0170,33.00,SJ Cleaning (Midlands) Ltd,147273,11/10/2012,10174181
Economy Development & Culture,Car Parks General,CPK01,Contract Cleaning,0170,21.00,SJ Cleaning (Midlands) Ltd,147273,11/10/2012,10174181
Resources & Corporate Governance ,Town Hall,OFF00,Contract Cleaning,0170,373.00,SJ Cleaning (Midlands) Ltd,147273,11/10/2012,10174181
Economy Development & Culture,Town Centre Public Conveniences,PCS00,Contract Cleaning,0170,21.00,SJ Cleaning (Midlands) Ltd,147273,11/10/2012,10174181
Sustainable Environment ,Caldecott Park/Town Centre Area,PKS00,Contract Cleaning,0170,41.00,SJ Cleaning (Midlands) Ltd,147273,11/10/2012,10174181
Resources & Corporate Governance ,WSU Depot,WDP00,Contract Cleaning,0170,41.00,SJ Cleaning (Midlands) Ltd,147273,11/10/2012,10174181
Resources & Corporate Governance,Handy man,WHM00,Materials,0303,773.37,ECA Supplies (Coventry) Limited,147276,04/10/2012,10172916
Resources & Corporate Governance,Handy man,WHM00,Materials,0303,619.25,ECA Supplies (Coventry) Limited,147276,18/10/2012,10174351
Resources & Corporate Governance,Handy man,WHM00,Materials,0303,771.68,ECA Supplies (Coventry) Limited,147276,18/10/2012,10174354
Capital Program ,Heating Upgrades,HIM01,Capital Contract Payments,5000,4080.00,Liberty Gas Group,147368,18/10/2012,10173907
Capital Program ,Heating Upgrades,HIM01,Capital Contract Payments,5000,3060.00,Liberty Gas Group,147368,18/10/2012,10174299
Capital Program ,Heating Upgrades,HIM01,Capital Contract Payments,5000,119991.00,Liberty Gas Group,147368,18/10/2012,10174596
Capital Program ,Heating Upgrades,HIM01,Capital Contract Payments,5000,30110.90,Liberty Gas Group,147368,18/10/2012,10174597
Capital Program ,Bathroom Modifications,HIS01,Capital Contract Payments,5000,12990.00,TSG Building Services Plc,147369,11/10/2012,10173631
Capital Program ,Bathroom Modifications,HIS01,Capital Contract Payments,5000,665.30,TSG Building Services Plc,147369,11/10/2012,10173862
Capital Program ,Bathroom Modifications,HIS01,Capital Contract Payments,5000,530.30,TSG Building Services Plc,147369,11/10/2012,10173863
Capital Program ,Bathroom Modifications,HIS01,Capital Contract Payments,5000,895.30,TSG Building Services Plc,147369,11/10/2012,10173864
Capital Program ,Bathroom Modifications,HIS01,Capital Contract Payments,5000,420.30,TSG Building Services Plc,147369,11/10/2012,10173865
Capital Program ,Bathroom Modifications,HIS01,Capital Contract Payments,5000,540.00,TSG Building Services Plc,147369,11/10/2012,10173866
Capital Program ,Bathroom Modifications,HIS01,Capital Contract Payments,5000,36372.00,TSG Building Services Plc,147369,18/10/2012,10174041
Capital Program ,Bathroom Modifications,HIS01,Capital Contract Payments,5000,33774.00,TSG Building Services Plc,147369,25/10/2012,10174879
Resources & Corporate Governance ,Domestic Waste Collection,WWC00,Contract Hire,0220,1448.00,Trash UK Limited,147379,04/10/2012,10173941
Resources & Corporate Governance ,Domestic Waste Collection,WWC00,Contract Hire,0220,1455.00,Trash UK Limited,147379,04/10/2012,10173942
Resources & Corporate Governance ,Domestic Waste Collection,WWC00,Contract Hire,0220,1075.00,Trash UK Limited,147379,11/10/2012,10174464
Resources & Corporate Governance ,Domestic Waste Collection,WWC00,Contract Hire,0220,1650.00,Trash UK Limited,147379,25/10/2012,10174957
Resources & Corporate Governance ,Occupational Health and Welfare,OHW00,Subscriptions,0421,4000.00,P &MM Ltd,147515,18/10/2012,10174783
Resources & Corporate Governance,Handy man,WHM00,Materials,0303,667.95,Robert Pochin Limited,147536,18/10/2012,10174667
Capital Program ,Crematorium Project,BUR04,Capital Contract Payments,5000,1500.00,Mr David Taylor,147537,04/10/2012,10174190
Capital Program ,Disabled Facilities Grant,REN01,Capital Grants,5014,5550.00,Pollards Property Solution,147541,25/10/2012,10175161
Resources & Corporate Governance ,"Communications, Consultation and Information Team",BTR20,Consultation,0378,2807.00,public-i,147599,18/10/2012,10174675
Resources & Corporate Governance ,Grounds Maintenance,WGM00,Vehicle Repair and Maintenance,0200,2039.86,Chris Tallis Farm Machinery Limited,147758,11/10/2012,10173181
Resources & Corporate Governance ,Grounds Maintenance,WGM00,Vehicle Repair and Maintenance,0200,813.90,Chris Tallis Farm Machinery Limited,147758,18/10/2012,10173332
Resources & Corporate Governance ,Grounds Maintenance,WGM00,Vehicle Repair and Maintenance,0200,580.70,Chris Tallis Farm Machinery Limited,147758,25/10/2012,10174659
Resources & Corporate Governance ,Grounds Maintenance,WGM00,Vehicle Repair and Maintenance,0200,517.25,Chris Tallis Farm Machinery Limited,147758,25/10/2012,10174660
Capital Program ,Great Central Walk Bridge,LEI14,Capital Contract Payments,5000,11148.00,Currall Lewis & Martin (Construction) Ltd,147769,18/10/2012,10174657
Capital Program ,Viaduct Cycleways,CYC02,Capital Contract Payments,5000,49674.26,Currall Lewis & Martin (Construction) Ltd,147769,18/10/2012,10174671
Capital Program ,Great Central Walk Bridge,LEI14,Capital Contract Payments,5000,7656.00,Currall Lewis & Martin (Construction) Ltd,147769,25/10/2012,10175031
Resources & Corporate Governance ,General Financial Services,GFS00,External Contractor & Operator,0742,997.26,Tradition (UK) Ltd,147842,11/10/2012,10174258
Resources & Corporate Governance ,"Communications, Consultation and Information Team",BTR20,Publicity & Marketing,0377,1015.00,Cole Creative Communications Ltd,147857,18/10/2012,10174869
Resources & Corporate Governance ,Human Resources Centralised Services,RES31,Training fees,0011,1500.00,Human Applications Ltd,147884,25/10/2012,10174896
Resources & Corporate Governance ,Human Resources Centralised Services,RES31,Other Miscellaneous Expenses,0444,75.82,Human Applications Ltd,147884,25/10/2012,10174896
Resources & Corporate Governance ,Grounds Maintenance,WGM00,Agency Staff,0003,260.16,3b2 Recruitment Ltd T/A Darren Bell Recruitment,147938,04/10/2012,10174052
Resources & Corporate Governance ,Domestic Waste Collection,WWC00,Agency Staff,0003,342.45,3b2 Recruitment Ltd T/A Darren Bell Recruitment,147938,04/10/2012,10174052
Resources & Corporate Governance ,WSU Depot,WDP00,Messing Facilities,0332,7334.00,G & S Transport & Construction Ltd,147995,18/10/2012,10174681
Capital Program ,Queen's Diamond Jubilee Leisure Centre Project,LEI03,Capital Contract Payments,5000,604260.53,Shepherd Construction Ltd,148014,11/10/2012,10174533
Resources & Corporate Governance,Handy man,WHM00,External Contractor & Operator,0742,540.00,Dean Hudson,148035,04/10/2012,10174169
Resources & Corporate Governance,Handy man,WHM00,External Contractor & Operator,0742,562.50,Dean Hudson,148035,18/10/2012,10174599
Resources & Corporate Governance,Handy man,WHM00,External Contractor & Operator,0742,592.50,Dean Hudson,148035,25/10/2012,10175225
Resources & Corporate Governance,Handy man,WHM00,External Contractor & Operator,0742,765.00,Ford Tucker,148036,04/10/2012,10174184
Carbon Management Plan,Carbon Management Plan,LCF01,Capital Contract Payments,5000,4999.00,Civica Services Ltd,148113,11/10/2012,10173715
Housing Revenue Account ,Property Maintenance,MAN23,Recruitment Expenses,0012,19.95,Team Prevent UK Ltd,148151,25/10/2012,10174950
Resources & Corporate Governance,Customer Support Services,CSS00,Employee wellbeing/Other employee expenses,0021,200.00,Team Prevent UK Ltd,148151,25/10/2012,10174950
Resources & Corporate Governance ,Toilet Cleaning,WBC01,Employee wellbeing/Other employee expenses,0021,85.00,Team Prevent UK Ltd,148151,25/10/2012,10174950
Resources & Corporate Governance ,Grounds Maintenance,WGM00,Employee wellbeing/Other employee expenses,0021,200.00,Team Prevent UK Ltd,148151,25/10/2012,10174950
Resources & Corporate Governance ,Street Cleansing,WSC00,Employee wellbeing/Other employee expenses,0021,170.00,Team Prevent UK Ltd,148151,25/10/2012,10174950
Resources & Corporate Governance ,Domestic Waste Collection,WWC00,Employee wellbeing/Other employee expenses,0021,280.00,Team Prevent UK Ltd,148151,25/10/2012,10174950
Capital Program ,Corporate Property Enhancements,CPE00,Capital Contract Payments,5000,495.00,The Engineering Practice Ltd,148180,11/10/2012,10174658
Capital Program ,Great Central Walk Bridge,LEI14,Capital Contract Payments,5000,1804.00,Midshires Scaffolding Co Ltd,148219,11/10/2012,10174259
Resources & Corporate Governance ,Customer and Information Strategy,CIS10,Training fees,0011,2900.00,EZE IT Ltd,148232,11/10/2012,10170535
Resources & Corporate Governance ,WSU Depot,WDP00,Tools,0304,7000.00,Reactec Ltd,148291,11/10/2012,10174565
Resources & Corporate Governance ,Safety and Resilience,EPL00,Other Miscellaneous Expenses,0444,2336.00,Reactec Ltd,148291,11/10/2012,10174565
Resources & Corporate Governance ,General Administration,WAD00,Training fees,0011,925.00,Park Hill Training Ltd,148323,04/10/2012,10173702
Sustainable Environment,Regulatory Services,REG00,External Legal Costs,0741,1100.00,Mr William Emerson,148361,18/10/2012,10174905
Resources & Corporate Governance ,Domestic Waste Collection,WWC00,Contract Hire,0220,1118.00,Pakawaste Limited,148436,18/10/2012,10174685
Resources & Corporate Governance ,Human Resources Centralised Services,RES31,Training fees,0011,1045.00,British Pest Control Association,148439,04/10/2012,10174250
Sustainable Environment ,Caldecott Park/Town Centre Area,PKS00,External Contractor & Operator,0742,2099.00,Clemas & Co Ltd,148440,18/10/2012,10174384
Housing Revenue Account ,Sheltered Housing Team,MAN21,Estates,0457,500.00,REDACTED PERSONAL DATA,148453,04/10/2012,10174203
Capital Program ,Disabled Facilities Grant,REN01,Capital Grants,5014,4551.96,AKW Medicare Ltd,148464,18/10/2012,10174316
Resources & Corporate Governance ,Council Tax and NNDR Collection,CTX01,Training fees,0011,900.00,Arvato Government Services Ltd,148478,11/10/2012,10174641
Resources & Corporate Governance ,General Administration,WAD00,Training fees,0011,595.00,Alistair Bromhead Ltd,148491,18/10/2012,10174725
Economy Development & Culture,Economic Development General,ECD00,Development Activities,0450,1250.00,Q Squared Design Ltd,148494,18/10/2012,10174885
Sustainable Inclusive Communities,Housing Benefit Administration,HBA00,External Legal Costs,0741,612.50,Mr Sam Karim,148507,25/10/2012,10175063
Sustainable Inclusive Communities,Housing Strategy & Enabling,HSE00,Other,0763,1000.00,Hope 4,148512,25/10/2012,10175137
,Balance Sheet,BS,Contributions To NNDR Pool,9476,1802083.00,Department for Communities & Local Govt,,02/10/2012,
,Balance Sheet,BS,Contributions To NNDR Pool,9476,1802082.00,Department for Communities & Local Govt,,22/10/2012,
Resources & Corporate Governance ,General Financial Services,GFS00,Payment Card Costs,0444,911.47,Capita,,26/10/2012,
